fUSD/lending_fUSD_20240116
["ID","MTS","AMOUNT","RATE_DAILY","PERIOD"]
[311750317,1705375858153,-500.0,0.00022709,2]
[311750318,1705375858163,-500.0,0.00022709,2]
[311750319,1705375858172,-559.85,0.00022709,2]
[311750320,1705375858182,-185.37,0.00022709,2]
[311750321,1705375858192,-500.0,0.00022709,2]
[311750322,1705375858204,-1175.71,0.00022709,2]
[311750323,1705375858213,-525.0,0.00022709,2]
[311750324,1705375858222,-502.71,0.00022709,2]
[311750325,1705375858231,-1624.71,0.00022709,2]
[311750326,1705375858241,-1038.56,0.00022709,2]
[311750327,1705375858251,-569.64,0.00022709,2]
[311750328,1705375858260,-685.65,0.00022709,2]
[311750329,1705375858269,-500.0,0.00022709,2]
[311750330,1705375858279,-882.52,0.00022709,2]
[311750331,1705375858288,-680.09,0.00022709,2]
[311750332,1705375858298,-950.01,0.00022709,2]
[311750333,1705375858307,-500.0,0.00022709,2]
[311750334,1705375858317,-579.71,0.00022709,2]
[311750335,1705375858327,-500.0,0.00022709,2]
[311750336,1705375858338,-500.0,0.00022709,2]
[311750337,1705375858347,-3455.63,0.00022709,2]
[311750338,1705375858356,-500.0,0.00022709,2]
[311750339,1705375858366,-802.9,0.00022709,2]
[311750340,1705375858376,-2253.83,0.00022709,2]
[311750341,1705375858385,-522.35,0.00022709,2]
[311750342,1705375858395,-2674.32,0.00022709,2]
[311750343,1705375858404,-500.0,0.0002271,2]
[311750344,1705375858414,-500.0,0.0002271,2]
[311750345,1705375858423,-500.0,0.0002271,2]
[311750346,1705375858432,-500.0,0.0002271,2]
[311750347,1705375858442,-583.17316334,0.0002271,2]
[311750348,1705375858451,-500.0,0.0002271,2]
[311750349,1705375858461,-500.0,0.0002271,2]
[311750350,1705375858471,-500.0,0.0002271,2]
[311750351,1705375858480,-500.0,0.0002271,2]
[311750352,1705375858489,-514.26,0.0002271,2]
[311750353,1705375858498,-500.0,0.0002271,2]
[311750354,1705375858507,-500.0,0.0002271,2]
[311750355,1705375858516,-500.0,0.0002271,2]
[311750356,1705375858526,-500.0,0.0002271,2]
[311750357,1705375858536,-500.0,0.0002271,2]
[311750358,1705375858545,-500.0,0.0002271,2]
[311750359,1705375858555,-500.0,0.0002271,2]
[311750360,1705375858564,-500.0,0.0002271,2]
[311750361,1705375858573,-500.0,0.0002271,2]
[311750362,1705375858582,-500.0,0.0002271,2]
[311750363,1705375858591,-500.0,0.0002271,2]
[311750364,1705375858601,-515.11,0.0002271,2]
[311750365,1705375858610,-507.12,0.0002271,2]
[311750366,1705375858620,-500.0,0.0002271,2]
[311750367,1705375858629,-522.72,0.0002271,2]
[311750368,1705375858640,-500.0,0.0002271,2]
[311750369,1705375858649,-259.4509621,0.0002271,2]
[311750370,1705375858660,-500.0,0.0002271,2]
[311750371,1705375858669,-500.0,0.0002271,2]
[311750372,1705375858678,-500.0,0.0002271,2]
[311750373,1705375858688,-500.0,0.0002271,2]
[311750374,1705375858697,-500.0,0.0002271,2]
[311750375,1705375858707,-582.58,0.0002271,2]
[311750376,1705375858717,-500.0,0.0002271,2]
[311750377,1705375858726,-609.39,0.0002271,2]
[311750378,1705375858735,-773.5,0.0002271,2]
[311750379,1705375858744,-500.0,0.0002271,2]
[311750380,1705375858754,-500.0,0.0002271,2]
[311750381,1705375858764,-267.75632486,0.0002271,2]
[311750382,1705375858773,-540.62,0.0002271,2]
[311750383,1705375858783,-500.0,0.0002271,2]
[311750384,1705375858793,-379.86944689,0.0002271,2]
[311750385,1705375858802,-513.02,0.0002271,2]
[311750386,1705375858812,-779.78,0.0002271,2]
[311750387,1705375858821,-500.0,0.0002271,2]
[311750388,1705375858831,-500.0,0.0002271,2]
[311750389,1705375858840,-500.0,0.0002271,2]
[311750390,1705375858850,-500.0,0.0002271,2]
[311750391,1705375858859,-706.49,0.0002271,2]
[311750392,1705375858870,-500.0,0.0002271,2]
[311750393,1705375858879,-500.0,0.0002271,2]
[311750394,1705375858889,-691.76,0.0002271,2]
[311750395,1705375858900,-951.28,0.0002271,2]
[311750396,1705375858910,-600.37,0.0002271,2]
[311750397,1705375858920,-755.26,0.0002271,2]
[311750398,1705375858930,-500.0,0.0002271,2]
[311750399,1705375858940,-991.37,0.0002271,2]
[311750400,1705375858951,-179.26529159,0.0002271,2]
[311750401,1705375858961,-500.0,0.0002271,2]
[311750402,1705375858971,-500.0,0.0002271,2]
[311750403,1705375858980,-659.74,0.0002271,2]
[311750404,1705375858990,-500.0,0.0002271,2]
[311750405,1705375858999,-840.38,0.0002271,2]
[311750406,1705375859009,-618.23395602,0.0002271,2]
[311750407,1705375859019,-500.0,0.0002271,2]
[311750408,1705375859029,-742.1,0.0002271,2]
[311750409,1705375859039,-500.0,0.0002271,2]
[311750410,1705375859048,-594.01,0.0002271,2]
[311750411,1705375859058,-500.0,0.0002271,2]
[311750412,1705375859068,-696.41,0.0002271,2]
[311750413,1705375859078,-500.0,0.0002271,2]
[311750414,1705375859087,-1012.84,0.0002271,2]
[311750415,1705375859097,-1632.43,0.0002271,2]
[311750416,1705375859106,-500.0,0.0002271,2]
[311750417,1705375859116,-662.49,0.0002271,2]
[311750418,1705375859126,-602.9,0.0002271,2]
[311750419,1705375859139,-677.36,0.0002271,2]
[311750420,1705375859150,-500.0,0.0002271,2]
[311750421,1705375859160,-500.0,0.0002271,2]
[311750422,1705375859170,-563.53,0.0002271,2]
[311750423,1705375859180,-282.01017783,0.0002271,2]
[311750424,1705375859190,-500.0,0.0002271,2]
[311750425,1705375859200,-556.63,0.0002271,2]
[311750426,1705375859210,-1296.8,0.0002271,2]
[311750427,1705375859220,-500.0,0.0002271,2]
[311750428,1705375859230,-500.0,0.0002271,2]
[311750429,1705375859240,-500.0,0.0002271,2]
[311750430,1705375859249,-400.61511933,0.0002271,2]
[311750431,1705375859259,-599.15,0.0002271,2]
[311750432,1705375859269,-500.0,0.0002271,2]
[311750433,1705375859279,-743.71,0.0002271,2]
[311750434,1705375859290,-541.86,0.0002271,2]
[311750435,1705375859300,-500.0,0.0002271,2]
[311750436,1705375859311,-503.01,0.0002271,2]
[311750437,1705375859321,-529.1,0.0002271,2]
[311750438,1705375859331,-1104.48,0.0002271,2]
[311750439,1705375859342,-500.0,0.0002271,2]
[311750440,1705375859351,-500.0,0.0002271,2]
[311750441,1705375859362,-516.19,0.0002271,2]
[311750442,1705375859372,-561.35,0.0002271,2]
[311750443,1705375859382,-544.07,0.0002271,2]
[311750444,1705375859392,-500.0,0.0002271,2]
[311750445,1705375859402,-778.67,0.0002271,2]
[311750446,1705375859413,-587.65,0.0002271,2]
[311750447,1705375859423,-381.57487848,0.0002271,2]
[311750448,1705375859433,-655.13,0.0002271,2]
[311750449,1705375859443,-500.0,0.0002271,2]
[311750450,1705375859453,-582.27,0.0002271,2]
[311750451,1705375859464,-500.0,0.0002271,2]
[311750452,1705375859474,-500.0,0.0002271,2]
[311750453,1705375859484,-619.18,0.0002271,2]
[311750454,1705375859494,-652.44,0.0002271,2]
[311750455,1705375859505,-500.0,0.0002271,2]
[311750456,1705375859515,-500.0,0.0002271,2]
[311750457,1705375859525,-565.32,0.0002271,2]
[311750458,1705375859536,-756.61,0.0002271,2]
[311750459,1705375859546,-602.32,0.0002271,2]
[311750460,1705375859556,-500.0,0.0002271,2]
[311750461,1705375859566,-500.0,0.0002271,2]
[311750462,1705375859576,-500.0,0.0002271,2]
[311750463,1705375859587,-491.93702196,0.0002271,2]
[311750464,1705375859597,-500.0,0.0002271,2]
[311750465,1705375859607,-500.0,0.0002271,2]
[311750466,1705375859617,-626.79,0.0002271,2]
[311750467,1705375859627,-500.0,0.0002271,2]
[311750468,1705375859637,-500.0,0.0002271,2]
[311750469,1705375859647,-500.0,0.0002271,2]
[311750470,1705375859658,-500.0,0.0002271,2]
[311750471,1705375859668,-500.0,0.0002271,2]
[311750472,1705375859679,-500.0,0.0002271,2]
[311750473,1705375859690,-500.0,0.0002271,2]
[311750474,1705375859701,-500.0,0.0002271,2]
[311750475,1705375859711,-500.0,0.0002271,2]
[311750476,1705375859721,-500.0,0.0002271,2]
[311750477,1705375859731,-962.9,0.0002271,2]
[311750478,1705375859742,-500.0,0.0002271,2]
[311750479,1705375859752,-500.0,0.0002271,2]
[311750480,1705375859762,-526.92,0.0002271,2]
[311750481,1705375859773,-364.10149841,0.0002271,2]
[311750482,1705375859783,-477.52289987,0.0002271,2]
[311750483,1705375859794,-500.0,0.0002271,2]
[311750484,1705375859804,-1012.83,0.0002271,2]
[311750485,1705375859818,-500.0,0.0002271,2]
[311750486,1705375859828,-500.0,0.0002271,2]
[311750487,1705375859838,-595.3,0.0002271,2]
[311750488,1705375859848,-581.06,0.0002271,2]
[311750489,1705375859859,-500.0,0.0002271,2]
[311750490,1705375859869,-574.24,0.0002271,2]
[311750491,1705375859880,-500.0,0.0002271,2]
[311750492,1705375859890,-593.48,0.0002271,2]
[311750493,1705375859904,-500.0,0.0002271,2]
[311750494,1705375859914,-500.0,0.0002271,2]
[311750495,1705375859924,-500.0,0.0002271,2]
[311750496,1705375859934,-506.85,0.0002271,2]
[311750497,1705375859945,-731.7,0.0002271,2]
[311750498,1705375859956,-500.0,0.0002271,2]
[311750499,1705375859966,-500.0,0.00022711,2]
[311750500,1705375859977,-500.0,0.00022711,2]
[311750501,1705375859987,-518.27,0.00022711,2]
[311750502,1705375859997,-500.0,0.00022711,2]
[311750503,1705375860007,-500.0,0.00022711,2]
[311750504,1705375860017,-500.0,0.00022711,2]
[311750505,1705375860027,-500.0,0.00022711,2]
[311750506,1705375860038,-500.0,0.00022711,2]
[311750507,1705375860048,-804.36,0.00022711,2]
[311750508,1705375860058,-500.0,0.00022711,2]
[311750509,1705375860068,-500.0,0.00022711,2]
[311750510,1705375860078,-500.0,0.00022711,2]
[311750511,1705375860089,-500.0,0.00022711,2]
[311750512,1705375860099,-564.47,0.00022711,2]
[311750513,1705375860109,-543.96508385,0.00022711,2]
[311750514,1705375860119,-500.0,0.00022711,2]
[311750515,1705375860129,-500.0,0.00022711,2]
[311750516,1705375860139,-500.0,0.00022711,2]
[311750517,1705375860150,-500.0,0.00022711,2]
[311750518,1705375860161,-500.0,0.00022711,2]
[311750519,1705375860171,-261.32334078,0.00022711,2]
[311750520,1705375860181,-500.0,0.00022711,2]
[311750521,1705375860191,-500.01,0.00022711,2]
[311750522,1705375860201,-500.0,0.00022711,2]
[311750523,1705375860211,-500.0,0.00022711,2]
[311750524,1705375860221,-500.0,0.00022711,2]
[311750525,1705375860231,-500.0,0.00022711,2]
[311750526,1705375860295,-500.0,0.00022711,2]
[311750527,1705375860305,-500.0,0.00022711,2]
[311750528,1705375860315,-500.0,0.00022711,2]
[311750529,1705375860326,-500.0,0.00022711,2]
[311750530,1705375860338,-500.0,0.00022711,2]
[311750531,1705375860348,-500.0,0.00022711,2]
[311750532,1705375860358,-408.18354686,0.00022711,2]
[311750533,1705375860368,-500.0,0.00022711,2]
[311750534,1705375860377,-500.0,0.00022711,2]
[311750535,1705375860387,-500.0,0.00022711,2]
[311750536,1705375860397,-500.0,0.00022711,2]
[311750537,1705375860406,-500.0,0.00022711,2]
[311750538,1705375860415,-500.0,0.00022711,2]
[311750539,1705375860424,-500.0,0.00022711,2]
[311750540,1705375860434,-500.0,0.00022711,2]
[311750541,1705375860447,-500.0,0.00022711,2]
[311750542,1705375860458,-500.0,0.00022711,2]
[311750543,1705375860468,-500.0,0.00022711,2]
[311750544,1705375860477,-153.54648296,0.00022711,2]
[311750545,1705375860487,-500.0,0.00022711,2]
[311750546,1705375860497,-507.06,0.00022711,2]
[311750547,1705375860508,-500.0,0.00022711,2]
[311750548,1705375860518,-500.0,0.00022711,2]
[311750549,1705375860528,-500.0,0.00022711,2]
[311750550,1705375860538,-500.0,0.00022711,2]
[311750551,1705375860549,-500.0,0.00022711,2]
[311750552,1705375860559,-500.0,0.00022711,2]
[311750553,1705375860572,-500.0,0.00022711,2]
[311750554,1705375860582,-500.0,0.00022711,2]
[311750555,1705375860591,-500.0,0.00022711,2]
[311750556,1705375860601,-500.0,0.00022711,2]
[311750557,1705375860610,-500.0,0.00022711,2]
[311750558,1705375860620,-500.0,0.00022711,2]
[311750559,1705375860630,-500.0,0.00022711,2]
[311750560,1705375860639,-500.0,0.00022711,2]
[311750561,1705375860649,-500.0,0.00022711,2]
[311750562,1705375860658,-500.0,0.00022711,2]
[311750563,1705375860668,-924.4,0.00022711,2]
[311750564,1705375860678,-500.0,0.00022711,2]
[311750565,1705375860688,-687.74,0.00022711,2]
[311750566,1705375860697,-500.0,0.00022711,2]
[311750567,1705375860709,-500.0,0.00022711,2]
[311750568,1705375860718,-500.0,0.00022711,2]
[311750569,1705375860728,-529.34,0.00022711,2]
[311750570,1705375860738,-500.0,0.00022711,2]
[311750571,1705375860747,-645.38,0.00022711,2]
[311750572,1705375860757,-1062.4,0.00022711,2]
[311750573,1705375860767,-500.0,0.00022711,2]
[311750574,1705375860777,-573.82,0.00022711,2]
[311750575,1705375860787,-500.0,0.00022711,2]
[311750576,1705375860796,-500.0,0.00022711,2]
[311750577,1705375860806,-900.0,0.00022711,2]
[311750578,1705375860816,-500.0,0.00022711,2]
[311750579,1705375860827,-500.0,0.00022711,2]
[311750580,1705375860837,-500.0,0.00022711,2]
[311750581,1705375860847,-1224.79,0.00022711,2]
[311750582,1705375860857,-500.0,0.00022711,2]
[311750583,1705375860866,-2490.48,0.00022711,2]
[311750584,1705375860876,-500.0,0.00022711,2]
[311750585,1705375860886,-500.0,0.00022711,2]
[311750586,1705375860896,-500.0,0.00022711,2]
[311750587,1705375860905,-474.01439092,0.00022711,2]
[311750588,1705375860915,-500.0,0.00022711,2]
[311750589,1705375860925,-500.0,0.00022711,2]
[311750590,1705375860934,-500.0,0.00022711,2]
[311750591,1705375860945,-500.0,0.00022711,2]
[311750592,1705375860956,-500.0,0.00022711,2]
[311750593,1705375860966,-500.0,0.00022711,2]
[311750594,1705375860976,-500.0,0.00022711,2]
[311750595,1705375860985,-538.64,0.00022711,2]
[311750596,1705375860995,-608.55,0.00022711,2]
[311750597,1705375861004,-500.0,0.00022711,2]
[311750598,1705375861014,-500.0,0.00022711,2]
[311750599,1705375861024,-645.8,0.00022711,2]
[311750600,1705375861395,-500.0,0.00022711,2]
[311750601,1705375861410,-500.0,0.00022711,2]
[311750602,1705375861420,-500.0,0.00022711,2]
[311750603,1705375861429,-1246.62,0.00022711,2]
[311750604,1705375861439,-521.48,0.00022711,2]
[311750605,1705375861449,-500.0,0.00022711,2]
[311750606,1705375861460,-681.29,0.00022711,2]
[311750607,1705375861469,-584.82,0.00022711,2]
[311750608,1705375861479,-500.0,0.00022711,2]
[311750609,1705375861488,-585.68,0.00022711,2]
[311750610,1705375861497,-2494.88,0.00022711,2]
[311750611,1705375861507,-187.17891875,0.00022711,2]
[311750612,1705375861517,-500.0,0.00022711,2]
[311750613,1705375861526,-859.49,0.00022711,2]
[311750614,1705375861536,-500.0,0.00022711,2]
[311750615,1705375861546,-500.0,0.00022711,2]
[311750616,1705375861556,-500.0,0.00022711,2]
[311750617,1705375861565,-500.0,0.00022711,2]
[311750618,1705375861574,-785.95,0.00022711,2]
[311750619,1705375861584,-500.0,0.00022711,2]
[311750620,1705375861594,-5536.87,0.00022711,2]
[311750621,1705375861604,-565.54,0.00022711,2]
[311750622,1705375861614,-168.0699112,0.00022711,2]
[311750623,1705375861627,-583.16,0.00022711,2]
[311750624,1705375861636,-268.35,0.00022711,2]
[311750625,1705375861646,-510.18,0.00022711,2]
[311750626,1705375861659,-269.45330703,0.00022711,2]
[311750627,1705375861668,-504.08,0.00022711,2]
[311750628,1705375861679,-578.16,0.00022711,2]
[311750629,1705375861689,-500.0,0.00022711,2]
[311750630,1705375861698,-500.0,0.00022711,2]
[311750631,1705375861709,-500.0,0.00022711,2]
[311750632,1705375861718,-500.0,0.00022711,2]
[311750633,1705375861728,-903.8,0.00022711,2]
[311750634,1705375861738,-500.0,0.00022711,2]
[311750635,1705375861747,-521.25,0.00022711,2]
[311750636,1705375861757,-1028.05,0.00022711,2]
[311750637,1705375861766,-980.29,0.00022711,2]
[311750638,1705375861776,-973.86,0.00022711,2]
[311750639,1705375861786,-500.0,0.00022711,2]
[311750640,1705375861795,-500.0,0.00022711,2]
[311750641,1705375861805,-500.0,0.00022711,2]
[311750642,1705375861815,-796.89,0.00022711,2]
[311750643,1705375861825,-830.14,0.00022711,2]
[311750644,1705375861835,-1169.29,0.00022711,2]
[311750645,1705375861844,-2527.06,0.00022711,2]
[311750646,1705375861855,-500.0,0.00022711,2]
[311750647,1705375861865,-784.45,0.00022711,2]
[311750648,1705375861874,-500.0,0.00022711,2]
[311750649,1705375861884,-2991.18,0.00022711,2]
[311750650,1705375861894,-500.0,0.00022711,2]
[311750651,1705375861904,-645.79,0.00022711,2]
[311750652,1705375861913,-500.0,0.00022711,2]
[311750653,1705375861923,-500.0,0.00022711,2]
[311750654,1705375861933,-500.0,0.00022711,2]
[311750655,1705375861943,-500.0,0.00022711,2]
[311750656,1705375861954,-540.6,0.00022711,2]
[311750657,1705375861964,-734.91,0.00022711,2]
[311750658,1705375861974,-500.0,0.00022711,2]
[311750659,1705375861984,-500.0,0.00022711,2]
[311750660,1705375861993,-500.0,0.00022711,2]
[311750661,1705375862003,-500.0,0.00022711,2]
[311750662,1705375862013,-500.0,0.00022711,2]
[311750663,1705375862023,-500.0,0.00022711,2]
[311750664,1705375862033,-500.0,0.00022711,2]
[311750665,1705375862043,-668.97,0.00022711,2]
[311750666,1705375862053,-500.0,0.00022711,2]
[311750667,1705375862064,-500.0,0.00022711,2]
[311750668,1705375862074,-500.0,0.00022711,2]
[311750669,1705375862085,-500.0,0.00022711,2]
[311750670,1705375862095,-680.93,0.00022711,2]
[311750671,1705375862104,-500.0,0.00022711,2]
[311750672,1705375862114,-505.48,0.00022711,2]
[311750673,1705375862124,-500.0,0.00022711,2]
[311750674,1705375862133,-500.0,0.00022711,2]
[311750675,1705375862143,-552.52,0.00022711,2]
[311750676,1705375862152,-589.44072651,0.00022711,2]
[311750677,1705375862162,-574.73,0.00022711,2]
[311750678,1705375862171,-500.0,0.00022711,2]
[311750679,1705375862181,-681.34,0.00022711,2]
[311750680,1705375862191,-500.0,0.00022711,2]
[311750681,1705375862201,-866.78,0.00022711,2]
[311750682,1705375862211,-922.35,0.00022711,2]
[311750683,1705375862220,-2002.96,0.00022711,2]
[311750684,1705375862230,-500.0,0.00022711,2]
[311750685,1705375862240,-517.23,0.00022711,2]
[311750686,1705375862249,-500.0,0.00022711,2]
[311750687,1705375862259,-1219.23,0.00022711,2]
[311750688,1705375862269,-1255.54,0.00022711,2]
[311750689,1705375862278,-500.0,0.00022711,2]
[311750690,1705375862289,-633.15,0.00022711,2]
[311750691,1705375862299,-850.32,0.00022711,2]
[311750692,1705375862308,-500.0,0.00022711,2]
[311750693,1705375862318,-500.0,0.00022712,2]
[311750694,1705375862327,-500.0,0.00022712,2]
[311750695,1705375862337,-500.0,0.00022712,2]
[311750696,1705375862348,-500.0,0.00022712,2]
[311750697,1705375862358,-512.9,0.00022712,2]
[311750698,1705375862368,-500.0,0.00022712,2]
[311750699,1705375862378,-500.0,0.00022712,2]
[311750700,1705375862387,-500.0,0.00022712,2]
[311750701,1705375862397,-500.0,0.00022712,2]
[311750702,1705375862406,-636.1,0.00022712,2]
[311750703,1705375862415,-1037.79,0.00022712,2]
[311750704,1705375862426,-500.0,0.00022712,2]
[311750705,1705375862435,-455.94544068,0.00022712,2]
[311750706,1705375862446,-537.11,0.00022712,2]
[311750707,1705375862457,-500.0,0.00022712,2]
[311750708,1705375862467,-500.0,0.00022712,2]
[311750709,1705375862477,-798.89,0.00022712,2]
[311750710,1705375862486,-1280.0,0.00022712,2]
[311750711,1705375862496,-500.0,0.00022712,2]
[311750712,1705375862505,-1111.4,0.00022712,2]
[311750713,1705375862514,-522.29,0.00022712,2]
[311750714,1705375862523,-500.0,0.00022712,2]
[311750715,1705375862533,-500.0,0.00022712,2]
[311750716,1705375862542,-1109.78,0.00022712,2]
[311750717,1705375862552,-666.24,0.00022712,2]
[311750718,1705375862561,-500.0,0.00022712,2]
[311750719,1705375862570,-587.02,0.00022712,2]
[311750720,1705375862580,-500.0,0.00022712,2]
[311750721,1705375862589,-500.0,0.00022712,2]
[311750722,1705375862599,-500.0,0.00022712,2]
[311750723,1705375862608,-500.0,0.00022712,2]
[311750724,1705375862618,-588.4,0.00022712,2]
[311750725,1705375862629,-500.0,0.00022712,2]
[311750726,1705375862640,-523.75,0.00022712,2]
[311750727,1705375862649,-500.0,0.00022712,2]
[311750728,1705375862659,-500.0,0.00022712,2]
[311750729,1705375862669,-500.0,0.00022712,2]
[311750730,1705375862679,-500.0,0.00022712,2]
[311750731,1705375862688,-500.0,0.00022712,2]
[311750732,1705375862698,-500.0,0.00022712,2]
[311750733,1705375862708,-500.0,0.00022712,2]
[311750734,1705375862718,-500.0,0.00022712,2]
[311750735,1705375862728,-500.0,0.00022712,2]
[311750736,1705375862739,-871.12,0.00022712,2]
[311750737,1705375862749,-500.0,0.00022712,2]
[311750738,1705375862758,-500.0,0.00022712,2]
[311750739,1705375862768,-611.55,0.00022712,2]
[311750740,1705375862777,-596.04,0.00022712,2]
[311750741,1705375862787,-733.4,0.00022713,2]
[311750742,1705375862797,-2116.623307,0.00022757,2]
[311750743,1705375862807,-154.0,0.00022766,2]
[311750744,1705375862817,-2116.623307,0.00022808,2]
[311750745,1705375862826,-151.59,0.0002284,2]
[311750746,1705375862836,-2116.623307,0.00022858,2]
[311750747,1705375862846,-100000.0,0.000229,2]
[311750748,1705375862855,-200000.0,0.000229,2]
[311750749,1705375862865,-100000.0,0.000229,2]
[311750750,1705375862874,-151.0,0.000229,7]
[311750751,1705375862884,-151.0,0.000229,7]
[311750752,1705375862894,-198.582886,0.000229,7]
[311750753,1705375862904,-151.0,0.000229,7]
[311750754,1705375862914,-151.0,0.000229,7]
[311750755,1705375862924,-151.0,0.000229,7]
[311750756,1705375862933,-151.0,0.000229,7]
[311750757,1705375862943,-248.185133,0.000229,7]
[311750758,1705375862953,-151.0,0.000229,7]
[311750759,1705375862962,-151.0,0.000229,7]
[311750760,1705375862972,-151.0,0.000229,7]
[311750761,1705375862982,-151.0,0.000229,7]
[311750762,1705375862991,-235.10622754,0.000229,2]
[311750763,1705375863000,-159.16543969,0.000229,2]
[311750764,1705375863010,-2116.623307,0.00022909,2]
[311750765,1705375863020,-164.94,0.00022947,2]
[311750766,1705375863029,-2116.623307,0.00022959,2]
[311750767,1705375863039,-500.0,0.0002298,2]
[311750768,1705375863049,-978.58,0.0002298,2]
[311750769,1705375863059,-500.0,0.0002298,2]
[311750770,1705375863069,-500.0,0.0002298,2]
[311750771,1705375863079,-500.0,0.0002298,2]
[311750772,1705375863088,-640.34,0.0002298,2]
[311750773,1705375863098,-500.0,0.0002298,2]
[311750774,1705375863107,-500.0,0.0002298,2]
[311750775,1705375863117,-1235.56,0.0002298,2]
[311750776,1705375863127,-500.0,0.0002298,2]
[311750777,1705375863136,-662.75,0.0002298,2]
[311750778,1705375863146,-717.72,0.0002298,2]
[311750779,1705375863156,-731.11,0.0002298,2]
[311750780,1705375863165,-500.0,0.0002298,2]
[311750781,1705375863175,-797.15,0.0002298,2]
[311750782,1705375863184,-566.67,0.0002298,2]
[311750783,1705375863193,-609.99,0.0002298,2]
[311750784,1705375863203,-527.61,0.0002298,2]
[311750785,1705375863213,-536.35,0.0002298,2]
[311750786,1705375863223,-618.82,0.0002298,2]
[311750787,1705375863232,-878.41,0.0002298,2]
[311750788,1705375863242,-3429.56,0.0002298,2]
[311750789,1705375863251,-1594.34,0.0002298,2]
[311750790,1705375863261,-653.22,0.0002298,2]
[311750791,1705375863271,-1058.93,0.0002298,2]
[311750792,1705375863280,-2032.16,0.0002298,2]
[311750793,1705375863290,-500.0,0.0002298,2]
[311750794,1705375863299,-1171.42,0.0002298,2]
[311750795,1705375863309,-2917.86,0.0002298,2]
[311750796,1705375863318,-552.54,0.0002298,2]
[311750797,1705375863328,-690.96,0.0002298,2]
[311750798,1705375863337,-1377.81,0.0002298,2]
[311750799,1705375863346,-500.0,0.0002298,2]
[311750800,1705375863356,-958.84,0.0002298,2]
[311750801,1705375863366,-500.0,0.0002298,2]
[311750802,1705375863375,-798.36,0.0002298,2]
[311750803,1705375863385,-558.21,0.0002298,2]
[311750804,1705375863394,-500.0,0.0002298,2]
[311750805,1705375863404,-2008.2,0.0002298,2]
[311750806,1705375863413,-4429.64,0.0002298,2]
[311750807,1705375863422,-500.0,0.0002298,2]
[311750808,1705375863431,-6189.38,0.0002298,2]
[311750809,1705375863441,-1077.33,0.0002298,2]
[311750810,1705375863450,-517.17,0.0002298,2]
[311750811,1705375863462,-2218.07,0.0002298,2]
[311750812,1705375863471,-500.0,0.0002298,2]
[311750813,1705375863481,-500.0,0.0002298,2]
[311750814,1705375863491,-698.05,0.0002298,2]
[311750815,1705375863500,-1357.56,0.0002298,2]
[311750816,1705375863509,-882.7,0.0002298,2]